bitfinex/quotes_ETHUSD_20240907
["timestamp","ask_amount","ask_price","bid_price","bid_amount"]
[1725727318274,3.67301185,2293.6,2292.9,4.36114]
[1725727318275,3.73011854,2293.4,2292.9,4.36114]
[1725727318509,7.22153578,2293.5,2292.9,4.36114]
[1725727318510,3.73011854,2293.0,2292.9,8.72242]
[1725727318898,6.73011854,2293.0,2292.9,8.72242]
[1725727319216,3.0,2293.0,2292.9,8.85199946]
[1725727319517,3.0,2293.2,2293.1,4.3609]
[1725727319667,3.0,2293.2,2293.1,8.85109323]
[1725727319870,3.0,2293.5,2293.4,4.36015]
[1725727320128,3.0,2293.5,2293.4,4.48908432]
[1725727321675,3.0,2293.5,2293.4,8.84941432]
[1725727322899,7.65169072,2294.1,2293.7,4.35972]
[1725727322900,11.38180926,2294.1,2293.7,4.35972]
[1725727323088,11.38180926,2294.1,2293.9,4.35938]
[1725727323089,1.13818093,2294.0,2293.9,4.35938]
[1725727323284,1.13818093,2294.0,2293.9,0.12820613]
[1725727323621,1.13818093,2294.0,2293.9,4.48758613]
[1725727323957,6.12571854,2294.1,2294.0,4.35919]
[1725727324095,2.86128578,2294.4,2293.9,0.12820613]
[1725727324300,3.73011854,2294.5,2294.3,4.35847]
[1725727324547,3.73011854,2294.5,2294.4,0.1272699]
[1725727324904,3.73011854,2294.5,2294.4,4.4856999]
[1725727325309,3.73011854,2294.5,2294.4,8.8441299]
[1725727325638,3.73011854,2294.7,2294.6,4.35787]
[1725727325999,3.73011854,2294.7,2294.6,4.48465095]
[1725727326913,6.73011854,2294.7,2294.6,4.48465095]
[1725727327509,6.73011854,2294.7,2294.6,8.84270095]
[1725727327716,5.25609072,2295.2,2294.6,1.01105105]
[1725727328044,4.01459415,2295.4,2295.2,4.35679]
[1725727328045,2.5662362,2295.4,2295.2,4.35679]
[1725727328213,2.3956,2295.4,2295.2,3.89110422]
[1725727328411,2.3956,2295.4,2295.3,0.12576265]
[1725727329329,2.3956,2295.4,2295.2,3.89110422]
[1725727329498,2.3956,2295.4,2295.3,0.12576265]
[1725727329839,2.75593483,2295.4,2295.2,3.89110422]
[1725727330198,2.75593483,2295.4,2295.3,0.12510149]
[1725727330438,5.75593483,2295.4,2295.3,0.12510149]
[1725727330653,2.75593483,2295.4,2295.0,4.35717]
[1725727330947,3.73011854,2295.1,2294.8,4.35755]
[1725727331306,3.0,2295.0,2294.8,4.35755]
[1725727332717,3.0,2295.0,2294.9,4.35748]
[1725727333857,3.0,2295.0,2294.9,8.71496]
[1725727334149,0.16992514,2295.5,2294.9,8.71496]
[1725727334150,3.0,2295.3,2295.2,4.35691]
[1725727334353,3.0,2295.5,2295.2,4.48215692]
[1725727334523,4.43752093,2295.5,2295.2,4.48215692]
[1725727335017,3.73011854,2295.4,2295.2,4.48215692]
[1725727335221,3.0,2295.3,2295.2,4.48215692]
[1725727335628,3.0,2295.3,2295.2,8.83906692]
[1725727336540,3.0,2295.5,2295.4,4.35643]
[1725727337051,3.0,2295.5,2295.4,0.12443562]
[1725727337223,3.40468937,2295.5,2295.4,0.12443562]
[1725727338334,4.05219064,2295.5,2295.4,0.12443562]
[1725727339150,17.63142152,2295.5,2295.4,0.12443562]
[1725727339358,2.0,2295.4,2294.4,2.3479]
[1725727339656,2.0,2295.4,2294.4,4.35833]
[1725727339657,3.73011854,2294.8,2294.4,4.35833]
[1725727339818,0.40468937,2294.7,2294.3,4.35849]
[1725727340023,1.05194737,2294.6,2294.5,0.12152939]
[1725727340332,1.05194737,2294.6,2294.4,0.12167492]
[1725727340528,3.0,2294.7,2294.5,0.12152939]
[1725727340827,1.05170087,2294.6,2294.4,4.35837]
[1725727341025,4.85599787,2294.7,2294.5,4.35824]
[1725727341026,3.0,2294.7,2294.5,4.35824]
[1725727341323,3.0,2294.7,2293.8,4.35957]
[1725727341324,2.4405,2294.5,2293.8,4.35945]
[1725727341544,3.73011854,2294.2,2294.0,4.35907]
[1725727341859,3.0,2294.1,2293.9,4.35936]
[1725727342219,3.0,2294.1,2293.8,4.35941]
[1725727342419,0.40415914,2294.0,2293.8,4.35941]
[1725727342618,3.0,2294.1,2293.8,4.35941]
[1725727342827,0.40414375,2294.0,2293.8,4.35941]
[1725727343025,3.0,2294.1,2293.8,8.71884]
[1725727343265,0.40414115,2294.0,2293.8,4.35941]
[1725727343418,3.0,2294.1,2293.6,4.35982]
[1725727343618,0.40414114,2294.0,2293.6,4.35982]
[1725727343819,4.10888485,2294.1,2293.6,4.35982]
[1725727344056,0.40413753,2294.0,2293.6,4.35982]
[1725727344376,1.57291846,2294.5,2293.8,2.3479]
[1725727344662,9.06996744,2295.2,2294.6,4.35803]
[1725727344824,1.05097864,2295.1,2294.8,4.35757]
[1725727345027,1.05097864,2295.0,2294.8,8.71514]
[1725727345336,0.40422255,2294.9,2294.8,4.35757]
[1725727345535,0.40429012,2295.1,2295.0,4.35729]
[1725727345857,0.40431624,2295.4,2295.0,4.3572]
[1725727346024,1.84752759,2295.4,2295.2,8.71368]
[1725727346218,0.40431624,2295.3,2295.2,4.3568]
[1725727346676,0.40431624,2295.3,2295.2,8.71371]
[1725727346823,0.16681209,2295.8,2295.6,4.35605]
[1725727347022,7.69659072,2296.0,2295.6,4.35605]
[1725727347023,0.40436988,2295.7,2295.6,4.35605]
[1725727347278,5.25609072,2296.0,2295.8,4.35573]
[1725727347419,0.52560907,2296.0,2295.8,4.35566]
[1725727347626,2.4405,2296.3,2296.0,4.35529]
[1725727347871,0.40448498,2296.2,2296.0,4.35529]
[1725727348027,4.97973812,2296.5,2296.0,4.35528]
[1725727348224,0.40447231,2296.4,2296.0,4.35528]
[1725727348424,0.40447231,2296.3,2296.0,8.71057]
[1725727348632,4.97973812,2296.5,2296.0,8.71058]
[1725727348837,1.38157628,2296.4,2296.0,8.71058]
[1725727349060,0.97705386,2296.4,2296.1,4.35518]
[1725727349364,9.14522049,2296.6,2296.0,4.35528]
[1725727349661,0.40452408,2296.5,2296.0,4.35528]
[1725727349828,9.14522049,2296.6,2296.0,4.35528]
[1725727350028,0.40451974,2296.5,2296.0,4.35528]
[1725727350227,8.81622808,2296.5,2296.0,4.35528]
[1725727352138,4.46172808,2296.5,2296.0,4.35528]
[1725727352572,8.81618808,2296.5,2296.0,4.35528]
[1725727352956,4.35468,2296.4,2295.8,8.71132]
[1725727353281,3.0,2296.3,2295.9,4.35546]
[1725727353743,3.0,2296.3,2296.0,0.11965495]
[1725727354371,4.35517,2296.2,2296.0,0.11965495]
[1725727354539,3.0,2296.1,2296.0,0.11965495]
[1725727354749,3.0,2296.1,2296.0,0.11885379]
[1725727354961,3.0,2296.1,2295.6,4.35606]
[1725727355163,3.0,2296.1,2295.8,4.35576]
[1725727355332,3.0,2296.2,2295.9,0.11899913]
[1725727355531,4.406401,2296.2,2295.9,0.11899913]
[1725727356163,1.406401,2296.2,2295.9,0.11899913]
[1725727356479,5.761441,2296.2,2295.9,0.11899913]
[1725727356765,3.0,2296.1,2295.7,4.35594]
[1725727356968,4.3761441,2296.1,2295.8,0.11887927]
[1725727357169,4.3761441,2296.1,2295.7,4.35594]
[1725727357339,4.3761441,2296.1,2295.8,4.47462927]
[1725727357542,4.3761441,2296.1,2295.8,0.11887927]
[1725727357803,4.3761441,2296.1,2295.6,4.35597]
[1725727357999,4.3761441,2296.1,2295.7,0.11902464]
[1725727358976,4.3761441,2296.1,2295.7,4.47494464]
[1725727359200,4.3761441,2296.1,2295.8,4.35575]
[1725727359405,3.0,2296.1,2295.9,0.11875471]
[1725727359715,1.406401,2296.2,2295.9,0.11875471]
[1725727360180,7.25609072,2296.6,2295.9,0.11875471]
[1725727360181,0.54044454,2296.7,2295.9,2.42475471]
[1725727360374,5.25609072,2297.0,2296.6,4.35416]
[1725727360616,6.92537444,2297.2,2296.7,0.11755591]
[1725727360907,4.0,2296.8,2296.7,0.11755591]
[1725727361108,0.675345,2297.1,2296.7,0.11755591]
[1725727361273,0.675345,2297.1,2296.8,4.35387]
[1725727361473,6.75332,2297.2,2296.7,0.11755591]
[1725727361715,6.75332,2297.2,2296.9,0.11726544]
[1725727361917,6.75332,2297.2,2296.8,0.11741067]
[1725727362076,6.75332,2297.2,2297.0,0.11712022]
[1725727362277,6.75332,2297.2,2296.9,0.11726544]
[1725727362501,3.675332,2297.1,2296.6,4.35408]
[1725727363285,8.028662,2297.1,2296.6,4.35408]
[1725727363815,3.675332,2297.1,2296.6,8.70823]
[1725727364030,3.675332,2297.1,2296.7,0.11755591]
[1725727366817,8.028662,2297.1,2296.7,0.11755591]
[1725727367129,5.8317182,2297.0,2296.7,0.11755591]
[1725727367304,10.1853682,2297.0,2296.7,0.11755591]
[1725727367502,3.0,2296.9,2296.4,8.70902]
[1725727367808,3.0,2296.9,2296.5,4.35432]
[1725727368016,3.0,2296.9,2296.6,0.11722827]
[1725727368212,3.0,2296.9,2296.6,4.47146827]
[1725727368437,4.4781982,2297.0,2296.6,4.47146827]
[1725727369597,4.4781982,2297.0,2296.7,4.35391]
[1725727369598,3.0,2297.0,2296.7,4.35391]
[1725727369814,3.8452035,2297.1,2296.8,0.11693777]
[1725727370013,3.8452035,2297.1,2296.7,4.35391]
[1725727370222,3.8452035,2297.1,2296.8,0.11693777]
[1725727370401,3.8452035,2297.1,2296.7,4.35391]
[1725727370609,3.8452035,2297.1,2296.8,0.11693777]
[1725727370810,3.8452035,2297.1,2296.7,4.35391]
[1725727371003,3.8452035,2297.1,2296.8,0.11693777]
[1725727371195,3.8452035,2297.1,2296.7,4.35391]
[1725727371396,3.8452035,2297.1,2296.8,0.11693777]
[1725727371726,3.8452035,2297.1,2296.7,4.35391]
[1725727372033,3.8452035,2297.1,2296.8,0.11693777]
[1725727372198,1.49518535,2297.0,2296.8,0.11693777]
[1725727372535,1.49518535,2297.0,2296.6,8.7084]
[1725727372728,1.49518535,2297.0,2296.9,0.11679254]
[1725727372931,1.49518535,2297.0,2296.6,8.70827]
[1725727373136,1.49518535,2297.0,2296.9,0.11679254]
[1725727373298,1.49518535,2297.0,2296.6,4.3541]
[1725727373495,1.49518535,2297.0,2296.9,0.11679254]
[1725727373699,1.49518535,2297.0,2296.6,4.3541]
[1725727373944,1.49518535,2297.0,2296.9,0.11615339]
[1725727374157,1.49518535,2297.0,2296.6,8.70826]
[1725727374444,1.49518535,2297.0,2296.7,0.11644387]
[1725727374938,1.49518535,2297.0,2296.7,4.47048387]
[1725727375108,3.1698715,2297.1,2296.7,4.47048387]
[1725727375740,7.5231815,2297.1,2296.7,0.11644387]
[1725727375912,3.1698715,2297.1,2296.7,0.11644387]
[1725727377309,7.5231915,2297.1,2296.7,0.11644387]
[1725727377524,1.56065028,2297.0,2296.7,0.11644387]
[1725727379006,8.08389131,2296.9,2296.7,0.11644387]
[1725727379245,3.0,2296.8,2296.4,4.35457]
[1725727379405,3.0,2296.8,2296.4,8.70912]
[1725727381164,3.0,2296.8,2296.4,4.35455]
[1725727381650,3.0,2296.8,2296.4,8.70909]
[1725727382320,3.0,2296.8,2296.5,4.35443]
[1725727384719,3.0,2296.8,2296.6,4.35424]
[1725727385939,3.0,2296.8,2296.7,4.35407]
[1725727386367,3.1698715,2297.1,2296.8,4.35374]
[1725727386649,3.0,2297.1,2296.8,4.35374]
[1725727387034,3.0,2297.1,2296.9,4.35369]
[1725727389465,0.4049445,2297.0,2296.9,4.35369]
[1725727390036,0.4049445,2297.0,2296.9,4.4697551]
[1725727391055,0.4049445,2297.0,2296.9,0.1160651]
[1725727391475,1.75627812,2297.0,2296.8,4.35387]
[1725727391631,0.4049445,2296.9,2296.8,4.35387]
[1725727391830,0.4049445,2296.9,2296.8,4.47008033]
[1725727391831,0.40492945,2296.9,2296.8,4.47008033]
[1725727392574,1.75626307,2296.9,2296.8,0.11621033]
[1725727392859,9.59260305,2296.9,2296.6,4.35416]
[1725727393061,8.08416764,2296.9,2296.8,0.11613762]
[1725727393374,8.48901289,2296.9,2296.7,0.11628286]
[1725727393530,8.53186948,2296.9,2296.8,0.11613762]
[1725727393875,8.48928752,2296.9,2296.6,4.35416]
[1725727394029,1.75919621,2296.8,2296.6,4.35416]
[1725727394236,0.40485682,2296.7,2296.6,4.35416]
[1725727394742,0.40485682,2296.7,2296.5,8.70867]
[1725727394938,0.40485682,2296.7,2296.5,4.35431]
[1725727395141,0.40489682,2296.6,2296.5,4.35431]
[1725727397045,0.40489682,2296.6,2296.4,4.35463]
[1725727397046,3.73009131,2296.6,2296.4,4.35463]
[1725727397278,3.40487202,2296.5,2296.4,4.35463]
[1725727397951,3.40487202,2296.5,2296.2,4.35489]
[1725727398145,0.40487202,2296.4,2296.2,4.35489]
[1725727398387,0.40487202,2296.4,2296.3,4.35483]
[1725727398890,0.40487202,2296.4,2296.2,4.35489]
[1725727400481,0.40487202,2296.4,2296.2,8.70979]
[1725727400781,0.40487202,2296.4,2296.2,4.35489]
[1725727401351,1.75921141,2296.4,2296.2,4.35489]
[1725727401547,0.40487202,2296.3,2296.2,4.35489]
[1725727401751,0.40491204,2296.3,2296.2,4.35489]
[1725727403375,2.02772294,2296.3,2295.8,4.35566]
[1725727403699,3.77063939,2295.9,2295.1,4.35701]
[1725727403905,0.28,2295.2,2294.9,4.35737]
[1725727404191,1.35633787,2295.0,2294.7,4.35772]
[1725727404350,1.3559796,2294.8,2294.5,4.35806]
[1725727404550,0.40491869,2294.7,2294.5,4.35806]
[1725727404791,0.40491869,2294.7,2294.4,2.2935]
[1725727404792,0.40491869,2294.6,2294.3,8.71696]
[1725727404958,0.40491869,2294.6,2294.1,2.2935]
[1725727404959,0.40491869,2294.5,2294.1,2.2935]
[1725727405164,0.40491869,2294.5,2293.8,4.3594]
[1725727405165,3.73009131,2294.3,2293.8,4.3594]
[1725727405346,3.73009131,2294.3,2294.0,4.35917]
[1725727405551,3.0,2294.2,2294.1,15.45748464]
[1725727405853,3.0,2294.7,2294.6,8.7161]
[1725727406051,3.0,2295.0,2294.9,4.35748]
[1725727406288,3.0,2295.1,2294.9,4.35748]
[1725727407181,3.0,2295.1,2294.8,8.71512]
[1725727407383,3.0,2295.1,2294.8,4.35755]
[1725727407676,3.0,2295.1,2294.9,0.11562556]
[1725727410678,3.0,2295.1,2294.9,4.47307556]
[1725727410889,3.0,2295.1,2294.9,0.11562556]
[1725727412459,3.0,2295.1,2294.4,4.35839]
[1725727412460,4.35767,2294.8,2293.4,2.2935]
[1725727412700,4.35767,2294.8,2293.5,0.20200312]
[1725727412701,3.73009131,2294.2,2293.5,0.20200312]
[1725727412903,3.73009131,2294.2,2293.8,4.35947]
[1725727413104,3.6841799,2294.1,2293.8,4.35947]
[1725727413269,3.6841799,2294.1,2293.9,0.11422482]
[1725727413799,3.0,2294.1,2293.9,0.11422482]
[1725727416816,3.0,2294.1,2294.0,8.71838]
[1725727417015,0.08714006,2294.6,2294.4,4.35833]
[1725727417185,0.08714006,2294.7,2294.5,0.11414227]
[1725727417873,0.08714006,2294.7,2294.4,4.35842]
[1725727418069,0.08714006,2294.7,2294.2,4.35867]
[1725727418070,0.9046242,2294.7,2294.6,0.11399675]
[1725727418315,3.9046242,2294.7,2294.5,0.11414227]
[1725727418510,3.9046242,2294.7,2294.6,0.11399675]
[1725727418874,3.9046242,2294.7,2294.3,4.35862]
[1725727419080,3.9046242,2294.7,2294.6,0.11399675]
[1725727419615,3.9046242,2294.7,2294.6,0.11108135]
[1725727419784,3.9046242,2294.7,2294.3,4.35862]
[1725727419976,3.9046242,2294.7,2294.4,0.1113724]
[1725727421416,3.73009131,2294.5,2294.4,0.1113724]
[1725727421619,6.73009131,2294.5,2294.2,4.35867]
[1725727421845,3.0,2294.4,2294.3,0.11151795]
[1725727422021,3.0,2294.4,2294.2,4.35867]
[1725727422222,3.0,2294.4,2294.3,0.11151795]
[1725727422451,3.0,2294.4,2294.3,4.35862]
[1725727422660,3.0,2294.4,2294.3,4.47013795]
[1725727422942,8.15136299,2294.4,2294.3,0.11151795]
[1725727423250,8.23850305,2294.4,2293.8,4.35946]
[1725727423430,3.73009131,2294.0,2293.9,0.11226674]
[1725727423632,6.73009131,2294.0,2293.9,4.47164674]
[1725727425950,6.73009131,2294.0,2293.9,0.11226674]
[1725727426924,6.73009131,2294.0,2293.9,4.47164674]
[1725727429539,6.73009131,2294.0,2293.9,4.38408662]
[1725727429872,6.70729,2294.5,2293.9,4.38408662]
[1725727429873,5.25609072,2294.6,2294.4,4.35833]
[1725727430039,8.08782131,2294.8,2294.2,8.71735]
[1725727430238,8.17496137,2294.8,2294.3,0.10902086]
[1725727430441,0.08714006,2294.7,2294.2,8.71736]
[1725727430738,1.3403862,2294.7,2294.3,0.10901044]
[1725727431074,1.3403862,2294.7,2293.9,4.35937]
[1725727431075,3.73009131,2294.5,2293.9,4.35937]
[1725727431279,6.70705,2294.6,2293.9,4.35937]
[1725727431280,3.73009131,2294.2,2293.9,4.35937]
[1725727431580,3.73009131,2294.2,2293.5,2.4216]
[1725727431581,3.73009131,2294.2,2294.0,4.35909]
[1725727431872,3.73009131,2294.2,2294.0,8.71817]
[1725727432074,3.0,2294.1,2294.0,4.35908]
[1725727432291,3.0,2294.1,2294.0,8.71827]
[1725727432577,3.0,2294.4,2294.0,4.35908]
[1725727433265,3.0,2294.4,2294.2,4.35881]
[1725727433460,3.0,2294.4,2294.0,8.71814]
[1725727433660,4.00314406,2294.4,2294.0,8.71814]
[1725727433975,4.09028412,2294.4,2294.1,4.35896]
[1725727435550,4.09028412,2294.4,2294.0,8.71813]
[1725727435753,4.09028412,2294.4,2294.0,8.71814]
[1725727435976,4.09028412,2294.4,2294.0,4.35906]
[1725727436134,4.09028412,2294.4,2294.0,8.71814]
[1725727436533,4.09028412,2294.4,2294.1,4.35895]
[1725727437368,4.09028412,2294.4,2294.2,0.10914555]
[1725727437763,0.86856847,2294.3,2294.2,0.10914555]
[1725727439885,3.73009131,2294.8,2294.3,4.35862]
[1725727440070,4.44501006,2294.7,2294.2,0.10914555]
[1725727441096,3.73009131,2294.5,2294.2,4.46784555]
[1725727441301,3.0,2294.4,2294.2,4.46784555]
[1725727441654,3.0,2294.4,2294.3,4.35862]
[1725727441854,3.0,2294.4,2294.3,4.46758355]
[1725727443208,3.0,2294.4,2294.3,8.82620355]
[1725727443495,3.0,2294.7,2294.6,4.35802]
[1725727443904,3.0,2294.7,2294.6,4.46645845]
[1725727444597,3.0,2294.7,2294.6,0.10843845]
[1725727444598,3.08714006,2294.7,2294.6,0.10843845]
[1725727445011,3.08714006,2294.7,2294.4,4.35833]
[1725727445012,3.0,2294.7,2294.5,4.35822]
[1725727445163,3.08714006,2294.7,2294.6,0.10842804]
[1725727445363,3.90413551,2294.7,2294.6,0.10842804]
[1725727445564,3.81699545,2294.7,2294.6,4.46647804]
[1725727445985,3.81699545,2294.7,2294.6,0.10842804]
[1725727446198,3.90413551,2294.7,2294.6,0.10842804]
[1725727446676,3.90413551,2294.7,2294.6,4.46647804]
[1725727448109,3.90413551,2294.7,2294.6,0.10842804]
[1725727448905,3.90413551,2294.7,2294.6,4.46647804]
[1725727449682,3.81699545,2294.7,2294.6,8.82090384]
[1725727449877,4.35649565,2294.7,2294.6,8.82090384]
[1725727450080,3.08714006,2294.7,2294.6,4.46285384]
[1725727450280,4.35649565,2294.7,2294.6,4.46285384]
[1725727450484,4.35649565,2294.7,2294.6,8.82090384]
[1725727450671,3.0,2294.7,2294.6,8.82090384]
[1725727454003,1.35649565,2295.1,2294.8,6.67517]
[1725727454209,1.35649565,2295.1,2295.0,8.71458]
[1725727454543,1.35649565,2295.2,2295.1,13.0713]
[1725727454753,1.35649565,2295.4,2295.1,6.11037546]
[1725727454903,1.35649565,2295.6,2295.5,4.35634]
[1725727455104,2.0,2295.4,2295.1,4.4610259]
[1725727455445,2.0,2295.4,2295.0,4.35717]
[1725727455446,5.17289784,2295.3,2295.2,4.35691]
[1725727456464,8.62478667,2295.3,2295.2,4.35691]
[1725727456666,10.16109841,2295.3,2295.0,8.7143]
[1725727456959,4.44237347,2295.2,2295.1,4.35707]
[1725727457165,3.08714006,2295.2,2295.1,4.35707]
[1725727457355,3.08714006,2295.2,2295.1,4.46089663]
[1725727459327,3.08714006,2295.2,2295.1,8.81799663]
[1725727460070,3.0,2295.2,2295.1,13.17509663]
[1725727460383,1.35523341,2295.6,2295.5,8.71268]
[1725727460670,6.77736919,2295.8,2295.7,4.35596]
[1725727460882,1.44175593,2295.8,2295.7,4.45858115]
[1725727461039,3.43084513,2295.8,2295.7,4.45858115]
[1725727461237,3.4308555,2295.8,2295.7,4.45858115]
[1725727461863,2.07622926,2295.8,2295.7,4.45858115]
[1725727462165,5.07622926,2295.8,2295.7,4.45858115]
[1725727462329,5.2531564,2295.9,2295.8,4.35578]
[1725727462529,3.73009131,2295.9,2295.8,13.06734]
[1725727462791,3.73009131,2295.9,2295.5,4.35632]
[1725727462792,1.35462624,2296.3,2296.2,4.35502]
[1725727463088,0.16778713,2296.4,2296.3,8.70966]
[1725727463233,4.42288786,2296.5,2296.4,4.35464]
[1725727463435,4.68859825,2296.5,2296.4,4.45624382]
[1725727465035,4.68859825,2296.5,2296.4,8.81088382]
[1725727465236,3.73009131,2296.5,2296.4,8.81088382]
[1725727465637,6.73009131,2296.5,2296.4,8.81088382]
[1725727465833,7.3357478,2296.5,2296.4,8.70928]
[1725727466040,7.3357478,2296.5,2296.4,8.81005715]
[1725727466041,6.73009131,2296.5,2296.4,8.81005715]
[1725727467141,3.73009131,2297.0,2296.8,4.35388]
[1725727467483,5.3282006,2297.0,2296.9,4.45372528]
[1725727467770,5.3282006,2297.0,2296.9,8.80741528]
[1725727467971,3.81723137,2297.0,2296.9,8.80741528]
[1725727468170,3.81723137,2297.0,2296.9,4.45372528]
[1725727468342,3.98258649,2297.0,2296.9,4.45372528]
[1725727468546,3.89544643,2297.0,2296.9,4.45372528]
[1725727469663,6.89544643,2297.0,2296.9,4.45372528]
[1725727470685,7.79370508,2297.0,2296.9,4.45372528]
[1725727471691,7.79370508,2297.0,2296.9,8.80741528]
[1725727473963,3.0,2297.0,2296.9,13.16110528]
[1725727474191,3.73009131,2297.2,2297.1,8.70662]
[1725727474618,3.8981155,2297.2,2297.1,8.80513311]
[1725727474958,3.73009131,2297.2,2297.1,8.80513311]
[1725727475303,0.08714006,2297.4,2297.1,8.80513311]
[1725727475304,0.08714006,2297.4,2297.3,4.35293]
[1725727475461,0.60565649,2297.2,2297.1,4.45173311]
[1725727475658,4.3357478,2297.2,2297.1,4.45173311]
[1725727476397,3.73009131,2297.2,2297.1,4.45173311]
[1725727476559,6.73009131,2297.2,2297.1,4.45173311]
[1725727476883,6.73009131,2297.2,2297.1,4.35322]
[1725727477192,7.41181445,2297.2,2297.1,4.45158771]
[1725727479864,6.73009131,2297.2,2297.1,8.80489771]
[1725727480065,0.08714006,2297.4,2297.3,4.35293]
[1725727480284,5.73009131,2297.5,2297.4,8.70548]
[1725727480499,3.73009131,2297.5,2297.4,8.80341217]
[1725727480697,3.81723137,2297.8,2297.4,4.45067217]
[1725727481001,3.73009131,2297.8,2297.7,8.70434]
[1725727481302,3.73009131,2297.8,2297.7,8.80178482]
[1725727481899,3.73009131,2298.1,2298.0,4.35161]
[1725727482068,3.89640783,2298.1,2298.0,4.35161]
[1725727482402,3.89640783,2298.1,2298.0,8.80008416]
[1725727482995,3.89640783,2298.1,2298.0,4.44847416]
[1725727483204,3.73009131,2298.3,2298.2,8.70246]
[1725727483365,0.08714006,2298.6,2298.1,4.35138]
[1725727483564,0.08714006,2298.6,2298.5,4.35066]
[1725727483869,3.81723137,2298.6,2298.5,4.44618637]
[1725727484380,3.73009131,2298.6,2298.5,4.44618637]
[1725727484583,4.3357478,2298.6,2298.5,4.44618637]
[1725727485295,7.50199916,2298.6,2298.5,4.44618637]
[1725727485475,7.58913922,2298.6,2298.5,4.44618637]
[1725727485879,7.58913922,2298.6,2298.5,0.09552637]
[1725727486201,7.58913922,2298.6,2297.8,4.35184]
[1725727486202,2.0,2298.2,2297.8,4.35184]
[1725727486510,3.73009131,2297.9,2297.7,4.35208]
[1725727486826,0.08714006,2297.8,2297.6,4.35225]
[1725727487016,3.08714006,2297.8,2297.7,4.35217]
[1725727491201,3.08714006,2297.8,2297.7,8.70434]
[1725727491399,3.0,2297.8,2297.7,8.70434]
[1725727492010,3.0,2297.8,2297.7,10.98454]
[1725727492239,3.08714006,2298.1,2298.0,4.35161]
[1725727493818,3.08714006,2298.1,2298.0,8.79293894]
[1725727493819,3.0,2298.1,2298.0,8.79293894]
[1725727496802,3.0,2298.1,2298.0,13.14454894]
[1725727497039,3.0,2298.1,2298.0,14.89420083]
[1725727498321,3.0,2298.1,2298.0,13.14454894]
[1725727498942,7.06364602,2299.8,2298.9,4.3499]
[1725727499124,3.73009131,2299.5,2299.0,2.4801]
[1725727499460,3.98792772,2299.4,2299.1,4.34942]
[1725727499632,5.12729241,2299.4,2299.1,8.78662653]
[1725727499965,5.12729241,2299.4,2299.1,4.43720653]
[1725727500166,5.12729241,2299.4,2299.1,8.78657653]
[1725727500457,3.73009131,2299.2,2299.1,0.08778653]
[1725727500758,3.73009131,2299.2,2298.8,4.34997]
[1725727500759,2.0,2299.0,2298.8,4.34997]
[1725727500923,1.49381305,2298.9,2298.8,8.69993]
[1725727501255,2.55,2299.3,2298.3,6.83112]
[1725727501470,6.28009131,2299.3,2298.3,6.83112]
[1725727501762,2.0,2299.3,2298.6,4.35035]
[1725727501932,3.73009131,2299.6,2298.4,0.683112]
[1725727501933,6.39190431,2299.6,2299.4,4.34882]
[1725727502267,6.39190431,2299.6,2299.5,8.69754]
[1725727502468,5.73009131,2299.6,2299.5,8.69754]
[1725727502624,4.39190431,2299.6,2299.5,13.04631]
[1725727502832,0.661813,2299.6,2299.5,13.04631]
[1725727503722,2.0,2299.5,2299.3,4.34901]
[1725727503964,4.39190431,2299.6,2298.9,4.34978]
[1725727503965,2.0,2299.2,2298.9,4.34978]
[1725727504135,4.39190431,2299.1,2299.0,4.34959]
[1725727504971,5.01736722,2299.1,2298.4,4.35081]
[1725727505137,3.0,2299.0,2298.9,4.34978]
[1725727505461,3.0,2299.0,2298.8,4.35002]
[1725727505668,4.60100343,2299.0,2298.8,4.35002]
[1725727506163,4.60100343,2299.0,2298.8,8.70004]
[1725727506360,3.93919043,2299.0,2298.9,4.3499]
[1725727506664,3.0,2299.0,2298.9,8.6998]
[1725727506979,3.0,2299.0,2298.9,13.0497]
[1725727507121,9.62537246,2299.4,2299.2,4.34916]
[1725727507122,3.0,2299.3,2299.2,4.34916]
[1725727507327,3.0,2299.3,2299.2,8.69849]
[1725727508061,8.98618203,2299.4,2299.3,4.34914]
[1725727508309,3.73009131,2299.4,2299.3,8.69828]
[1725727508613,3.73009131,2299.4,2299.3,4.34914]
[1725727509695,6.73009131,2299.4,2299.3,8.69828]
[1725727510269,6.73009131,2299.4,2299.3,4.34914]
[1725727510477,6.73009131,2299.4,2299.3,8.69828]
[1725727511107,6.73009131,2299.4,2299.3,4.34914]
[1725727513289,6.73009131,2299.4,2299.0,4.34969]
[1725727513290,7.40310044,2299.4,2299.0,4.34956]
[1725727513601,3.0,2299.3,2299.1,4.34942]
[1725727514180,3.0,2299.3,2299.2,0.08638678]
[1725727514397,3.94031004,2299.3,2299.2,0.08638678]
[1725727515759,3.94031004,2299.3,2299.2,4.43571678]
[1725727516204,3.0,2299.3,2299.2,8.78504678]
[1725727516406,3.0,2299.3,2299.2,0.08638678]
[1725727516612,3.0,2299.3,2299.0,4.34955]
[1725727516613,3.0,2299.3,2299.1,4.34943]
[1725727516761,3.0,2299.3,2299.2,0.08644378]
[1725727516964,3.0,2299.3,2299.2,4.43577378]
[1725727517572,3.0,2299.3,2299.2,8.78510378]
[1725727517962,2.0,2299.5,2299.4,4.34896]
[1725727518164,2.87300913,2299.5,2299.4,4.34896]
[1725727518401,5.0,2299.5,2299.4,4.43504138]
[1725727518764,3.0,2299.6,2299.5,4.34877]
[1725727519097,3.0,2299.6,2299.4,4.43504138]
[1725727519261,3.0,2299.6,2299.5,0.08593648]
[1725727520693,3.0,2299.6,2299.5,4.43470648]
[1725727520881,3.0,2299.6,2299.5,8.78347648]
[1725727521400,2.0,2299.8,2299.7,4.34839]
[1725727521604,3.0,2299.9,2299.8,4.3482]
[1725727521977,3.0,2299.9,2299.8,4.43370184]
[1725727523363,3.0,2299.9,2299.8,8.78190184]
[1725727523570,2.0,2300.1,2300.0,4.34782]
[1725727523974,2.0,2300.1,2300.0,4.43303215]
[1725727524604,2.0,2300.1,2300.0,0.08521215]
[1725727524967,2.17183338,2300.1,2300.0,0.08521215]
[1725727526863,2.0,2300.1,2300.0,4.43303215]
[1725727527091,2.0,2300.1,2300.0,0.08521215]